bitfinex-derivatives/quotes_BTCF0:USTF0_20250919
["timestamp","ask_amount","ask_price","bid_price","bid_amount"]
[1758288491821,0.87256476,116340.0,116330.0,0.0221101]
[1758288492216,0.08084476,116340.0,116330.0,0.0221101]
[1758288492425,0.87256476,116340.0,116330.0,0.0221101]
[1758288492722,0.87256476,116340.0,116330.0,0.3829101]
[1758288493116,0.89256476,116340.0,116330.0,0.3829101]
[1758288493312,0.89252476,116340.0,116330.0,0.3829101]
[1758288493516,1.25332476,116340.0,116330.0,1e-07]
[1758288493721,1.92197447,116340.0,116330.0,1e-07]
[1758288494216,1.92197447,116340.0,116310.0,0.38301]
[1758288494217,0.1220616,116320.0,116310.0,0.38301]
[1758288494416,0.9137416,116320.0,116310.0,0.80155971]
[1758288494918,0.1220616,116320.0,116310.0,0.38291]
[1758288495527,0.9138616,116320.0,116310.0,0.38291]
[1758288495719,0.9138616,116320.0,116310.0,0.02511]
[1758288496236,0.9138616,116320.0,116310.0,0.38591]
[1758288496529,0.9148216,116320.0,116310.0,0.38791]
[1758288496724,0.9148216,116320.0,116310.0,0.02711]
[1758288497326,0.9148216,116320.0,116310.0,0.38791]
[1758288497827,0.9146216,116320.0,116310.0,0.38791]
[1758288499220,0.9146216,116320.0,116310.0,0.02707]
[1758288499421,0.9146216,116320.0,116310.0,0.38787]
[1758288499621,0.9146216,116320.0,116310.0,0.02707]
[1758288499823,0.9146216,116320.0,116310.0,0.005]
[1758288500127,0.9346216,116320.0,116310.0,0.02711]
[1758288500728,0.9346216,116320.0,116310.0,0.38791]
[1758288501229,0.1430616,116320.0,116310.0,1.06959971]
[1758288501428,0.1291516,116320.0,116310.0,1.15553871]
[1758288501633,0.8993316,116320.0,116310.0,1.15553871]
[1758288502026,0.1069316,116320.0,116310.0,1.15553871]
[1758288502325,0.1069316,116320.0,116310.0,1.23239548]
[1758288502927,0.1069316,116320.0,116310.0,1.15553871]
[1758288503430,0.1069316,116320.0,116310.0,1.23239548]
[1758288503635,0.1069316,116320.0,116310.0,0.736889]
[1758288503936,0.1069316,116320.0,116310.0,1.15553871]
[1758288504533,0.1069316,116320.0,116310.0,1.23239548]
[1758288504729,0.1069316,116320.0,116310.0,1.15553871]
[1758288505529,0.1069316,116320.0,116310.0,1.23239548]
[1758288507136,0.021,116320.0,116310.0,1.23239548]
[1758288507337,0.021,116320.0,116310.0,1.15553871]
[1758288507539,0.021,116320.0,116310.0,1.23239548]
[1758288507744,0.021,116320.0,116310.0,1.2298842]
[1758288508040,0.021,116320.0,116310.0,1.24990842]
[1758288508242,0.021,116320.0,116310.0,1.34496165]
[1758288508443,0.1069312,116320.0,116310.0,1.4529262]
[1758288508640,0.1069312,116320.0,116310.0,2.2453662]
[1758288508831,0.1069312,116320.0,116310.0,1.3669872]
[1758288509037,0.1286312,116320.0,116310.0,1.1169872]
[1758288511246,0.1286312,116320.0,116310.0,0.59288422]
[1758288511451,0.1422912,116320.0,116310.0,0.40793422]
[1758288512150,0.1286312,116320.0,116310.0,0.83699265]
[1758288512545,0.1422912,116320.0,116310.0,0.40793422]
[1758288513246,0.1422912,116320.0,116310.0,0.48503123]
[1758288514351,0.1422912,116320.0,116310.0,0.12423123]
[1758288515149,0.3922912,116320.0,116310.0,0.12423123]
[1758288515542,0.3922912,116320.0,116310.0,0.48503123]
[1758288516551,1.1851312,116320.0,116310.0,0.48503123]
[1758288517048,0.3922912,116320.0,116310.0,0.48503123]
[1758288517256,1.1851712,116320.0,116310.0,0.49795123]
[1758288517654,0.3922912,116320.0,116310.0,0.49795123]
[1758288517846,1.1851312,116320.0,116310.0,0.49795123]
[1758288518048,1.1850512,116320.0,116310.0,0.49795123]
[1758288519353,0.9350512,116320.0,116310.0,0.49795123]
[1758288519557,0.9350512,116320.0,116310.0,0.48503123]
[1758288519759,0.1422912,116320.0,116310.0,0.48503123]
[1758288519954,0.9350512,116320.0,116310.0,0.48503123]
[1758288520257,0.9347712,116320.0,116310.0,0.48503123]
[1758288520448,0.9347712,116320.0,116310.0,0.40793422]
[1758288520849,0.9347712,116320.0,116310.0,0.48507776]
[1758288523456,0.1422912,116320.0,116310.0,0.48507776]
[1758288523656,0.9347312,116320.0,116310.0,0.48507776]
[1758288523853,0.9208312,116320.0,116310.0,0.91413619]
[1758288524362,0.9208312,116320.0,116310.0,0.49799776]
[1758288524562,0.9208712,116320.0,116310.0,0.91413619]
[1758288525058,0.1286312,116320.0,116310.0,0.91413619]
[1758288525252,0.9207512,116320.0,116310.0,1.00007499]
[1758288526351,0.9207512,116320.0,116310.0,0.98005077]
[1758288526862,0.1286312,116320.0,116310.0,0.98005077]
[1758288527162,0.9206712,116320.0,116310.0,1.23005077]
[1758288527357,0.1286312,116320.0,116310.0,1.23005077]
[1758288527564,0.1069314,116320.0,116310.0,1.15290723]
[1758288528064,0.021,116320.0,116310.0,1.15290723]
[1758288528456,0.021,116320.0,116310.0,1.26087178]
[1758288528863,0.1069314,116320.0,116310.0,2.05267178]
[1758288529563,0.021,116320.0,116310.0,1.26087178]
[1758288529765,0.021,116320.0,116310.0,2.07239358]
[1758288530865,0.021,116320.0,116310.0,1.96442903]
[1758288532063,0.021,116320.0,116310.0,1.17262903]
[1758288532261,0.021,116320.0,116310.0,1.96422903]
[1758288532966,0.021,116320.0,116310.0,1.17262903]
[1758288533166,0.021,116320.0,116310.0,1.96422903]
[1758288534072,0.021,116320.0,116310.0,1.17262903]
[1758288534368,0.021,116320.0,116310.0,1.96406903]
[1758288534568,0.021,116320.0,116310.0,2.13597903]
[1758288535159,0.021,116320.0,116310.0,1.34453903]
[1758288535360,0.021,116320.0,116310.0,2.13565903]
[1758288535556,0.021,116320.0,116310.0,2.13561903]
[1758288537167,0.00703068,116320.0,116310.0,2.13561903]
[1758288537764,0.00703068,116320.0,116310.0,2.13533903]
[1758288538265,0.00703068,116320.0,116310.0,2.13529903]
[1758288538465,0.00703068,116320.0,116310.0,1.34453903]
[1758288538664,0.00703068,116320.0,116310.0,2.13521903]
[1758288538863,0.00703068,116320.0,116310.0,2.13513903]
[1758288539469,0.00703068,116320.0,116310.0,1.34453903]
[1758288539671,0.00703068,116320.0,116310.0,2.13509903]
[1758288539974,0.09296208,116320.0,116310.0,1.7188806]
[1758288540269,0.00703068,116320.0,116310.0,2.13501903]
[1758288541874,0.00703068,116320.0,116310.0,1.34453903]
[1758288542068,0.00703068,116320.0,116310.0,2.13513903]
[1758288542371,0.00703068,116320.0,116310.0,2.28952106]
[1758288542871,0.00703068,116320.0,116310.0,2.28940106]
[1758288543168,0.00703068,116320.0,116310.0,2.03940106]
[1758288543169,0.09296208,116320.0,116310.0,2.03940106]
[1758288543375,0.09296208,116320.0,116310.0,2.03932106]
[1758288543767,0.09296208,116320.0,116310.0,1.95338226]
[1758288543961,0.09296208,116320.0,116310.0,1.16298226]
[1758288544361,0.09296208,116320.0,116310.0,0.74684383]
[1758288544362,0.36572208,116320.0,116310.0,0.74684383]
[1758288544570,0.37943208,116320.0,116310.0,0.5795418]
[1758288544974,0.37943208,116320.0,116310.0,1.00899023]
[1758288545473,0.36572208,116320.0,116310.0,1.00899023]
[1758288547276,0.35175137,116320.0,116310.0,1.00899023]
[1758288549270,0.36546137,116320.0,116310.0,0.4076318]
[1758288552178,0.36546137,116320.0,116310.0,0.74294503]
[1758288552581,0.36546137,116320.0,116310.0,0.85096835]
[1758288555772,0.36546137,116320.0,116310.0,0.74294503]
[1758288556487,0.7007746,116320.0,116310.0,0.11303649]
[1758288557287,0.7007746,116320.0,116310.0,0.13447649]
[1758288557681,1.4908146,116320.0,116310.0,0.13447649]
[1758288558687,1.4907746,116320.0,116310.0,0.13447649]
[1758288558887,0.36546137,116320.0,116310.0,0.13447649]
[1758288559087,1.15530137,116320.0,116310.0,0.13447649]
[1758288559687,0.36546137,116320.0,116310.0,0.13447649]
[1758288559887,1.15530137,116320.0,116310.0,0.13447649]
[1758288560790,1.15530137,116320.0,116310.0,0.02644]
[1758288561192,1.8514146,116320.0,116310.0,0.005]
[1758288569996,2.18687651,116320.0,116310.0,0.005]
[1758288570195,0.1222088,116310.0,116300.0,0.43166073]
[1758288570395,0.1222088,116310.0,116300.0,0.43156073]
[1758288570396,0.45759637,116310.0,116300.0,0.43156073]
[1758288571495,0.45759637,116310.0,116300.0,0.43256073]
[1758288572096,0.81839637,116310.0,116300.0,0.43256073]
[1758288572300,0.81839637,116310.0,116300.0,0.07563316]
[1758288572900,0.81839637,116310.0,116300.0,0.18366965]
[1758288573395,0.81839637,116310.0,116300.0,0.07563316]
[1758288574294,0.81839637,116310.0,116300.0,0.07559316]
[1758288574699,0.81839637,116310.0,116300.0,0.04256766]
[1758288575002,0.1222162,116300.0,116290.0,0.11685432]
[1758288575193,1.24576377,116300.0,116290.0,0.11675432]
[1758288575392,1.24576377,116300.0,116290.0,0.45214189]
[1758288575593,1.24576377,116300.0,116290.0,0.3441054]
[1758288575794,1.94195134,116300.0,116290.0,0.00871783]
[1758288575992,0.1222236,116290.0,116280.0,0.51015059]
[1758288576188,1.24577117,116290.0,116280.0,0.84543816]
[1758288577201,0.45761117,116290.0,116280.0,0.85385132]
[1758288577401,1.24581117,116290.0,116280.0,0.74581483]
[1758288577703,1.24581117,116290.0,116280.0,0.81931168]
[1758288577896,0.1222236,116290.0,116280.0,0.81931168]
[1758288578296,1.24665117,116290.0,116280.0,0.82331168]
[1758288578997,1.24665117,116290.0,116280.0,1.15869925]
[1758288579699,1.24665117,116290.0,116280.0,0.46638411]
[1758288579897,1.24665117,116290.0,116280.0,0.82331168]
[1758288580097,1.24825117,116290.0,116280.0,0.82331168]
[1758288580299,0.45861117,116290.0,116280.0,0.82331168]
[1758288580599,1.24817117,116290.0,116280.0,0.82331168]
[1758288581294,1.60897117,116290.0,116280.0,0.20520744]
[1758288581496,1.60897117,116290.0,116280.0,0.15262154]
[1758288581698,1.60897117,116290.0,116280.0,0.04458505]
[1758288583699,0.81941117,116290.0,116280.0,0.04458505]
[1758288584002,1.60861117,116290.0,116280.0,0.04458505]
[1758288584195,0.81941117,116290.0,116280.0,0.04458505]
[1758288584394,1.60853117,116290.0,116280.0,0.04458505]
[1758288585107,0.81941117,116290.0,116280.0,0.05307336]
[1758288585306,0.81941117,116290.0,116280.0,0.41000093]
[1758288585505,1.24765117,116290.0,116280.0,0.41000093]
[1758288585895,0.45861117,116290.0,116280.0,0.41000093]
[1758288586108,0.1232236,116290.0,116280.0,1.1188485]
[1758288586312,0.9121836,116290.0,116280.0,0.43541336]
[1758288586606,0.9121436,116290.0,116280.0,1.1061885]
[1758288587196,0.1232236,116290.0,116280.0,1.1061885]
[1758288587596,0.9119836,116290.0,116280.0,1.1061885]
[1758288587804,0.1232236,116290.0,116280.0,1.1061885]
[1758288588005,0.9119436,116290.0,116280.0,1.1061885]
[1758288589301,0.1232236,116290.0,116280.0,1.1061885]
[1758288589510,0.9119436,116290.0,116280.0,1.1188485]
[1758288589707,0.1232236,116290.0,116280.0,1.1188485]
[1758288590012,0.9120636,116290.0,116280.0,1.13870972]
[1758288591306,0.9120636,116290.0,116280.0,0.76524972]
[1758288591603,0.9120636,116290.0,116280.0,0.09447458]
[1758288591808,1.24745117,116290.0,116280.0,0.76524972]
[1758288592198,1.24745117,116290.0,116280.0,0.42986215]
[1758288592401,1.24745117,116290.0,116280.0,0.07461336]
[1758288592711,1.60825117,116290.0,116280.0,0.05307336]
[1758288593103,1.60825117,116290.0,116280.0,0.02250316]
[1758288593412,1.60825117,116290.0,116280.0,0.004]
[1758288593609,0.1223009,116280.0,116270.0,0.38204]
[1758288593814,0.45768847,116280.0,116270.0,0.71732757]
[1758288595113,0.45868847,116280.0,116270.0,0.72732757]
[1758288595316,0.9129009,116280.0,116270.0,0.40557]
[1758288595514,0.1233009,116280.0,116270.0,0.74095757]
[1758288595711,0.9127409,116280.0,116270.0,0.74095757]
[1758288596112,0.9126609,116280.0,116270.0,0.74095757]
[1758288596312,0.9126609,116280.0,116270.0,0.80801613]
[1758288596707,1.24804847,116280.0,116270.0,0.48124511]
[1758288597018,1.25204847,116280.0,116270.0,0.79800268]
[1758288597310,1.25304847,116280.0,116270.0,0.79300268]
[1758288597717,0.9176609,116280.0,116270.0,0.79300268]
[1758288597904,1.25304847,116280.0,116270.0,0.79300268]
[1758288598107,1.58643604,116280.0,116270.0,0.09681511]
[1758288598308,1.25204847,116280.0,116270.0,0.43320268]
[1758288598506,1.24804847,116280.0,116270.0,0.43320268]
[1758288598914,1.24804847,116280.0,116270.0,0.09781511]
[1758288599311,1.24804847,116280.0,116270.0,0.43320268]
[1758288599512,1.96147634,116280.0,116270.0,0.02648396]
[1758288599719,1.96147634,116280.0,116270.0,6e-08]
[1758288599908,1.96123634,116280.0,116270.0,0.02309006]
[1758288600111,1.96127634,116280.0,116270.0,0.02309006]
[1758288600511,0.47592877,116280.0,116270.0,0.35847763]
[1758288600708,0.1275012,116280.0,116270.0,1.38551193]
[1758288600909,0.9166612,116280.0,116270.0,1.39404591]
[1758288601117,0.9167412,116280.0,116270.0,1.39404591]
[1758288601608,1.26582877,116280.0,116270.0,0.09884077]
[1758288601810,1.96201634,116280.0,116270.0,0.09884077]
[1758288602010,1.60121634,116280.0,116270.0,0.09884077]
[1758288602210,1.26582877,116280.0,116270.0,0.43422834]
[1758288602917,0.9304412,116280.0,116270.0,0.79502834]
[1758288603115,0.9167412,116280.0,116270.0,1.39307591]
[1758288603309,0.94929723,116280.0,116260.0,0.38070034]
[1758288603512,0.1221683,116270.0,116260.0,0.73917791]
[1758288603718,0.14102433,116270.0,116260.0,1.07446548]
[1758288603916,0.0859683,116270.0,116260.0,1.74928716]
[1758288604115,0.0859683,116270.0,116260.0,1.83526286]
[1758288604420,0.1404012,116280.0,116270.0,0.1090317]
[1758288604624,0.1404012,116280.0,116270.0,1.24864333]
[1758288604818,0.1404012,116280.0,116270.0,0.57786819]
[1758288605119,0.1394012,116280.0,116270.0,1.24864333]
[1758288605318,0.1052012,116280.0,116270.0,1.58461163]
[1758288605725,0.1052012,116280.0,116270.0,2.37809163]
[1758288606613,0.0192403,116280.0,116270.0,2.37809163]
[1758288606819,0.0362,116310.0,116300.0,0.02309]
[1758288607124,0.1221389,116310.0,116300.0,1.41546514]
[1758288607624,0.4763825,116310.0,116300.0,0.7216]
[1758288607922,0.4763825,116310.0,116300.0,1.08007757]
[1758288608218,0.14482859,116310.0,116300.0,1.41546514]
[1758288608620,0.14682859,116310.0,116300.0,1.48479212]
[1758288609019,0.14682859,116310.0,116300.0,1.69160491]
[1758288609323,0.4843825,116310.0,116300.0,0.56125347]
[1758288609622,0.14899493,116310.0,116300.0,0.53816347]
[1758288609822,0.4843825,116310.0,116300.0,0.78860455]
[1758288610022,0.4843825,116310.0,116300.0,0.43012698]
[1758288610219,0.7343825,116310.0,116300.0,0.43012698]
[1758288610418,1.0951825,116310.0,116300.0,0.001]
[1758288610815,1.36341346,116310.0,116300.0,0.001]
[1758288611017,0.10433832,116310.0,116300.0,0.72027757]
[1758288611323,0.43972589,116310.0,116300.0,0.02409]
[1758288611523,0.43972589,116310.0,116300.0,0.35947757]
[1758288611925,0.43972589,116310.0,116300.0,0.02409]
[1758288612709,0.43972589,116310.0,116300.0,0.09381253]
[1758288613320,1.38591346,116310.0,116300.0,0.001]
[1758288613522,1.05052589,116310.0,116300.0,0.001]
[1758288614020,1.38591346,116310.0,116300.0,0.001]
[1758288614218,1.38591346,116310.0,116300.0,1e-07]
[1758288617119,1.05052589,116310.0,116300.0,1e-07]
[1758288617520,1.38591346,116310.0,116300.0,1e-07]
[1758288618020,1.05052589,116310.0,116300.0,1e-07]
[1758288618220,0.71513832,116310.0,116300.0,1e-07]
[1758288618424,1.05052589,116310.0,116300.0,1e-07]
[1758288618728,1.84424589,116310.0,116300.0,1e-07]
[1758288619429,1.50885832,116310.0,116300.0,1e-07]
[1758288619618,1.84424589,116310.0,116300.0,1e-07]
[1758288619817,1.05052589,116310.0,116300.0,1e-07]
[1758288620014,1.84420589,116310.0,116300.0,1e-07]
[1758288620226,1.84404589,116310.0,116300.0,0.33538767]
[1758288620428,1.84404589,116310.0,116300.0,1e-07]
[1758288621131,1.84392589,116310.0,116300.0,1e-07]
[1758288621623,1.05052589,116310.0,116300.0,1e-07]
[1758288621822,1.84392589,116310.0,116300.0,1e-07]
[1758288622625,0.46513832,116310.0,116300.0,0.35694767]
[1758288622814,0.46513832,116310.0,116300.0,0.69233524]
[1758288623014,1.25849832,116310.0,116300.0,0.69233524]
[1758288623620,0.89769832,116310.0,116300.0,0.69233524]
[1758288624226,1.23308589,116310.0,116300.0,1.05313524]
[1758288624432,1.23308589,116310.0,116300.0,0.42406456]
[1758288625623,0.89769832,116310.0,116300.0,0.42406456]
[1758288625830,1.23308589,116310.0,116300.0,0.42406456]
[1758288626016,1.23308589,116310.0,116300.0,0.78486456]
[1758288626218,0.89769832,116310.0,116300.0,0.78486456]
[1758288626424,1.23308589,116310.0,116300.0,0.78486456]
[1758288626731,0.43972589,116310.0,116300.0,0.78486456]
[1758288626933,0.89737832,116310.0,116300.0,1.12025213]
[1758288628529,1.23276589,116310.0,116300.0,1.12025213]
[1758288628725,0.89737832,116310.0,116300.0,1.12025213]
[1758288629040,0.89725832,116310.0,116300.0,1.12025213]
[1758288629426,0.87840229,116310.0,116300.0,1.37025213]
[1758288629826,0.87840229,116310.0,116300.0,1.04351922]
[1758288630028,0.87840229,116310.0,116300.0,1.14282571]
[1758288630423,0.89725832,116310.0,116300.0,0.89282571]
[1758288630625,0.89725832,116310.0,116300.0,0.55751348]
[1758288631131,0.89725832,116310.0,116300.0,0.17515348]
[1758288631132,1.23257055,116310.0,116300.0,0.17515348]
[1758288631342,1.23257055,116310.0,116300.0,0.06711699]
[1758288632235,0.89725832,116310.0,116300.0,0.08867699]
[1758288632435,0.89725832,116310.0,116300.0,0.42398922]
[1758288632734,0.89757832,116310.0,116300.0,0.42398922]
[1758288633737,0.89749832,116310.0,116300.0,0.42398922]
[1758288634234,0.10433832,116310.0,116300.0,0.42398922]
[1758288634434,0.89729832,116310.0,116300.0,0.89282571]
[1758288635031,0.89729832,116310.0,116300.0,1.14282571]
[1758288635231,0.89729832,116310.0,116300.0,1.15155571]
[1758288635431,0.89729832,116310.0,116300.0,1.14282571]
[1758288636142,0.89629832,116310.0,116300.0,1.14382561]
[1758288636544,0.89629832,116310.0,116300.0,0.78302561]
[1758288636731,0.89329832,116310.0,116300.0,0.78302561]
[1758288637040,1.58941055,116310.0,116300.0,0.44871338]
[1758288637248,2.17172278,116310.0,116300.0,8e-08]
[1758288637541,0.1213263,116300.0,116290.0,8e-08]
[1758288637731,0.89877568,116300.0,116290.0,8e-08]
[1758288637933,0.1213337,116290.0,116280.0,4e-08]
[1758288638133,1.2770937,116290.0,116280.0,4e-08]
[1758288638347,1.29594973,116290.0,116280.0,4e-08]
[1758288639442,1.2770937,116290.0,116280.0,4e-08]
[1758288640346,1.2769337,116290.0,116280.0,4e-08]
[1758288640742,1.2809337,116290.0,116280.0,4e-08]
[1758288641142,1.2819337,116290.0,116280.0,0.00200004]
[1758288641543,1.2779337,116290.0,116280.0,0.00200004]
[1758288641947,0.4831337,116290.0,116280.0,0.00200004]
[1758288642146,1.2776137,116290.0,116280.0,0.00200004]
[1758288642339,1.2776537,116290.0,116280.0,0.00200004]
[1758288642842,0.9167737,116290.0,116280.0,0.38436004]
[1758288643059,0.1223337,116290.0,116280.0,0.38436004]
[1758288643241,0.9168537,116290.0,116280.0,0.38436004]
[1758288643442,1.2776537,116290.0,116280.0,0.02356004]
[1758288643942,0.9167737,116290.0,116280.0,0.02356004]
[1758288644644,0.1223337,116290.0,116280.0,0.02356004]
[1758288644844,0.9166137,116290.0,116280.0,0.02356004]
[1758288648353,0.9168537,116290.0,116280.0,0.02356004]
[1758288648555,0.9167337,116290.0,116280.0,0.02356004]
[1758288648853,0.93582973,116290.0,116280.0,0.80100942]
[1758288649154,0.93582973,116290.0,116280.0,0.69020942]
[1758288649155,0.9169737,116290.0,116280.0,0.69020942]
[1758288649343,0.9169737,116290.0,116280.0,0.27356004]
[1758288649545,0.93582973,116290.0,116280.0,0.00200004]
[1758288649854,1.29662973,116290.0,116280.0,0.00200004]
[1758288650045,1.71327911,116290.0,116280.0,4e-08]
[1758288650247,1.29662973,116290.0,116280.0,4e-08]
[1758288652350,0.50198973,116290.0,116280.0,4e-08]
[1758288652556,1.29670973,116290.0,116280.0,4e-08]
[1758288653155,1.29670973,116290.0,116280.0,0.02156004]
[1758288654346,0.50198973,116290.0,116280.0,0.02156004]
[1758288654742,0.93558973,116290.0,116280.0,0.02156004]
[1758288654947,0.93562973,116290.0,116280.0,0.02156004]
[1758288655457,1.29642973,116290.0,116280.0,0.02156004]
[1758288655655,0.1222311,116280.0,116270.0,0.77744938]
[1758288655847,0.1222311,116280.0,116270.0,0.38263]
[1758288657257,0.1242311,116280.0,116270.0,0.38263]
[1758288657458,0.1252311,116280.0,116270.0,0.38363]
[1758288658263,0.9194311,116280.0,116270.0,0.38363]
[1758288659861,0.9194311,116280.0,116270.0,0.71917861]
[1758288660059,0.1252311,116280.0,116270.0,0.71917861]
[1758288660250,0.9190311,116280.0,116270.0,0.71917861]
[1758288660762,0.1252311,116280.0,116270.0,0.71917861]
[1758288660950,0.0889611,116280.0,116270.0,1.39069572]
[1758288661154,0.07498495,116280.0,116270.0,2.18457572]
[1758288661461,0.07498495,116280.0,116270.0,2.33895775]
[1758288661766,0.07498495,116280.0,116270.0,2.42489775]
[1758288663354,0.003,116280.0,116270.0,2.42489775]
[1758288663559,0.0859574,116290.0,116280.0,0.1144911]
[1758288663862,0.0859574,116290.0,116280.0,1.06640173]
[1758288664066,0.0859574,116290.0,116280.0,1.86016173]
[1758288664753,0.0869574,116290.0,116280.0,1.7066997]
[1758288666462,0.0879537,116290.0,116280.0,1.7066997]
[1758288666669,0.0879537,116290.0,116280.0,1.9566997]
[1758288667053,0.0869537,116290.0,116280.0,1.1630197]
[1758288667359,0.0889537,116290.0,116280.0,1.9563397]
[1758288667662,0.0889537,116290.0,116280.0,1.0770586]
[1758288667860,0.0889537,116290.0,116280.0,1.8704986]
[1758288668063,0.0889537,116290.0,116280.0,1.0770586]
[1758288668260,0.0889537,116290.0,116280.0,1.8704986]
[1758288668462,0.0889537,116290.0,116280.0,1.9564597]
[1758288669467,0.0889537,116290.0,116280.0,1.1630197]
[1758288669669,0.0889537,116290.0,116280.0,1.9564597]
[1758288669864,0.0889537,116290.0,116280.0,1.0770586]
[1758288670165,0.14417973,116290.0,116280.0,0.8196786]
[1758288670367,0.14417973,116290.0,116280.0,0.40333689]
[1758288670761,0.39417973,116290.0,116280.0,0.40333689]
[1758288670973,0.39417973,116290.0,116280.0,0.04253689]
[1758288671766,0.39417973,116290.0,116280.0,0.02138689]
[1758288672368,0.39417973,116290.0,116280.0,0.04253689]
[1758288672564,0.39417973,116290.0,116280.0,0.40333689]
[1758288672760,0.14417973,116290.0,116280.0,1.6130386]
[1758288673670,0.13020517,116290.0,116280.0,1.6130386]
[1758288674167,0.13020517,116290.0,116280.0,1.19669689]
[1758288674376,0.13020517,116290.0,116280.0,0.8196786]
[1758288675868,0.13020517,116290.0,116280.0,0.79929171]
[1758288677166,0.11665517,116290.0,116280.0,0.4762911]
[1758288677471,0.09383517,116290.0,116280.0,0.89263281]
[1758288677659,0.09383517,116290.0,116280.0,0.80667171]
[1758288678066,0.11665517,116290.0,116280.0,1.60039171]
[1758288678667,0.11665517,116290.0,116280.0,1.68635281]
[1758288678978,0.09383517,116290.0,116280.0,1.68635281]
[1758288679470,0.13020517,116290.0,116280.0,0.79929171]
[1758288679674,0.13020517,116290.0,116280.0,1.59397171]
[1758288679977,0.13020517,116290.0,116280.0,1.59393171]
[1758288680280,0.13020517,116290.0,116280.0,0.38295]
[1758288681282,0.13020517,116290.0,116280.0,0.79929171]
[1758288681579,0.09383517,116290.0,116280.0,0.80667171]
[1758288681769,0.11665517,116290.0,116280.0,0.80667171]
[1758288681968,0.13020517,116290.0,116280.0,0.79929171]
[1758288683881,0.13020517,116290.0,116280.0,0.38295]
[1758288684179,0.13020517,116290.0,116280.0,0.79929171]
[1758288684373,0.07986112,116290.0,116280.0,0.88525281]
[1758288684777,0.07986112,116290.0,116280.0,1.03963484]
[1758288687178,0.07986112,116290.0,116280.0,0.88525281]
[1758288688973,0.10780983,116290.0,116280.0,0.88525281]
[1758288689778,0.10780983,116290.0,116280.0,1.68045281]
[1758288690075,0.0859464,116300.0,116290.0,0.08294]
[1758288690266,0.01885603,116300.0,116290.0,0.97420541]
[1758288690775,0.03547748,116310.0,116300.0,0.1145863]
[1758288690980,0.03547748,116310.0,116300.0,1.68672801]
[1758288691386,0.03547748,116310.0,116300.0,0.89172801]
[1758288691578,0.03547748,116310.0,116300.0,1.75664866]
[1758288691783,0.03547748,116310.0,116300.0,1.75937489]
[1758288691975,0.03547748,116310.0,116300.0,0.87938859]
[1758288692178,0.03647748,116310.0,116300.0,1.67650859]
[1758288692379,0.03647748,116310.0,116300.0,1.76245489]
[1758288692580,0.03647748,116310.0,116300.0,1.76145489]
[1758288692780,0.002,116310.0,116300.0,1.76145489]
[1758288693076,0.002,116310.0,116300.0,2.01145489]
[1758288693471,0.002,116310.0,116300.0,2.01169489]
[1758288693672,0.087939,116310.0,116300.0,1.29927489]
[1758288693877,0.087939,116310.0,116300.0,1.84459489]
[1758288694076,0.087939,116310.0,116300.0,1.04927489]
[1758288694276,0.087939,116310.0,116300.0,1.84463489]
[1758288694477,0.001,116310.0,116300.0,1.84263489]
[1758288694677,0.001,116310.0,116300.0,1.04827489]
[1758288694678,0.002,116310.0,116300.0,1.04827489]
[1758288694877,0.002,116310.0,116300.0,1.84359489]
[1758288695884,0.087939,116310.0,116300.0,1.04827489]
[1758288696084,0.087939,116310.0,116300.0,1.84339489]
[1758288696286,0.002,116310.0,116300.0,1.84339489]
[1758288696681,0.002,116310.0,116300.0,2.51246283]
[1758288697479,0.0859249,116330.0,116320.0,0.1145662]
[1758288697786,0.0859249,116330.0,116320.0,2.57191382]
[1758288698489,0.0215,116340.0,116330.0,0.107184]
[1758288698692,0.1074216,116340.0,116330.0,0.80112794]
[1758288698895,0.1212516,116340.0,116330.0,0.80112794]
[1758288699691,0.3732516,116340.0,116330.0,0.38306]
[1758288700295,0.3732516,116340.0,116330.0,0.02226]
[1758288700485,0.3732516,116340.0,116330.0,0.38306]
[1758288700788,0.3732516,116340.0,116330.0,0.001]
[1758288701187,0.3762516,116340.0,116330.0,0.001]
[1758288702391,0.79531954,116340.0,116330.0,0.001]
[1758288702994,0.3762516,116340.0,116330.0,0.001]
[1758288703890,0.0997541,116330.0,116320.0,0.01980634]
[1758288704096,0.0997541,116330.0,116310.0,0.0001]
[1758288704097,0.1212615,116320.0,116310.0,0.0001]
[1758288704285,0.1212689,116310.0,116300.0,0.06998065]
[1758288704590,0.9162289,116310.0,116300.0,0.06988065]
[1758288704789,0.1212763,116300.0,116290.0,0.90398186]
[1758288704994,0.1212763,116300.0,116290.0,0.38206]
[1758288705585,0.1212763,116300.0,116290.0,0.80112794]
[1758288705893,0.1222763,116300.0,116290.0,0.80212794]
[1758288706094,0.1242763,116300.0,116290.0,0.80212794]
[1758288707794,0.1242763,116300.0,116290.0,0.38306]
[1758288707998,0.1242763,116300.0,116290.0,0.80212794]
[1758288708891,0.1242763,116300.0,116290.0,0.44132794]
[1758288709089,0.1242763,116300.0,116290.0,0.80212794]
[1758288709891,0.1242763,116300.0,116290.0,0.38306]
[1758288710199,0.1242763,116300.0,116290.0,0.80212794]
[1758288711597,0.0889463,116300.0,116290.0,0.89499154]
[1758288711791,0.0889463,116300.0,116290.0,1.93895154]
[1758288712901,0.003,116300.0,116290.0,1.93895154]
[1758288713291,0.0889463,116300.0,116290.0,1.93895154]
[1758288713497,0.003,116300.0,116290.0,1.93895154]
[1758288713701,0.003,116300.0,116290.0,2.02189154]
[1758288714095,0.003,116300.0,116290.0,1.6028236]
[1758288714295,0.03695189,116310.0,116300.0,0.1148763]
[1758288714494,0.03695189,116310.0,116300.0,0.89474424]
[1758288714696,0.03695189,116310.0,116300.0,0.91455638]
[1758288714999,0.085936,116320.0,116310.0,0.1153389]
[1758288715295,0.085936,116320.0,116310.0,1.60370794]
[1758288715497,0.108456,116320.0,116310.0,0.3902]
[1758288715699,0.121566,116320.0,116310.0,0.80188794]
[1758288716002,0.121566,116320.0,116310.0,0.38282]
[1758288716200,0.10423526,116320.0,116310.0,0.38282]
[1758288716494,0.10523526,116320.0,116310.0,0.80388794]
[1758288717500,0.09212526,116320.0,116310.0,0.81126794]
[1758288717701,0.06960526,116320.0,116310.0,0.81126794]
[1758288717999,0.06960526,116320.0,116310.0,0.81626794]
[1758288718900,0.10596526,116320.0,116310.0,0.80888794]
[1758288719698,0.10596526,116320.0,116310.0,0.38982]
[1758288719895,0.10596526,116320.0,116310.0,0.80888794]
[1758288720602,0.09275526,116320.0,116310.0,0.81579794]
[1758288720803,0.10659526,116320.0,116310.0,0.80888794]
[1758288721890,0.09275526,116320.0,116310.0,0.80888794]
[1758288722200,0.10659526,116320.0,116310.0,0.80888794]
[1758288725106,0.10659526,116320.0,116310.0,1.60296794]
[1758288726108,0.10659526,116320.0,116310.0,0.38982]
[1758288726405,0.10659526,116320.0,116310.0,0.80888794]
[1758288728708,0.10659526,116320.0,116310.0,1.60256794]
[1758288729110,0.10659526,116320.0,116310.0,0.80888794]